fUST/lending_fUST_20241217
["ID","MTS","AMOUNT","RATE_DAILY","PERIOD"]
[345593670,1734373858080,-500.0,0.00028493,7]
[345593671,1734373858090,-500.0,0.00028493,7]
[345593672,1734373858100,-500.0,0.00028493,7]
[345593673,1734373858109,-170.24005587,0.00028493,7]
[345593674,1734373858119,-781.2,0.00028493,7]
[345593675,1734373858128,-500.0,0.00028493,7]
[345593676,1734373858138,-652.55,0.00028493,7]
[345593677,1734373858149,-500.0,0.00028493,7]
[345593678,1734373858159,-500.0,0.00028493,7]
[345593679,1734373858168,-500.0,0.00028493,7]
[345593680,1734373858177,-151.0,0.00028493,7]
[345593681,1734373858187,-500.0,0.00028493,7]
[345593682,1734373858197,-500.0,0.00028493,7]
[345593683,1734373858209,-151.0,0.00028493,7]
[345593684,1734373858218,-528.469171,0.00028493,7]
[345593685,1734373858227,-500.0,0.00028493,7]
[345593686,1734373858237,-1942.51,0.00028493,7]
[345593687,1734373858246,-549.01,0.00028493,7]
[345593688,1734373858255,-738.47,0.00028493,7]
[345593689,1734373858264,-500.0,0.00028493,7]
[345593690,1734373858276,-399.21262399,0.00028493,7]
[345593691,1734373858285,-500.0,0.00028493,7]
[345593692,1734373858294,-683.4,0.00028493,7]
[345593693,1734373858304,-500.0,0.00028493,7]
[345593694,1734373858313,-500.0,0.00028493,7]
[345593695,1734373858322,-965.75,0.00028493,7]
[345593696,1734373858332,-2608.94,0.00028493,7]
[345593697,1734373858341,-615.23,0.00028493,7]
[345593698,1734373858350,-864.53,0.00028493,7]
[345593699,1734373858360,-500.0,0.00028493,7]
[345593700,1734373858371,-500.0,0.00028493,7]
[345593701,1734373858381,-938.96,0.00028493,7]
[345593702,1734373858390,-168.02,0.00028493,7]
[345593703,1734373858400,-563.36,0.00028493,7]
[345593704,1734373858409,-516.76891626,0.00028493,7]
[345593705,1734373858419,-500.0,0.00028493,7]
[345593706,1734373858428,-1710.74,0.00028493,7]
[345593707,1734373858437,-150.27306219,0.00028493,7]
[345593708,1734373858446,-855.63,0.00028493,7]
[345593709,1734373858457,-500.0,0.00028493,7]
[345593710,1734373858466,-500.0,0.00028493,7]
[345593711,1734373858476,-1166.87,0.00028493,7]
[345593712,1734373858485,-2025.4,0.00028493,2]
[345593713,1734373858495,-500.0,0.00028493,7]
[345593714,1734373858506,-438.42305327,0.00028493,7]
[345593715,1734373858517,-835.88,0.00028493,7]
[345593716,1734373858528,-1056.72,0.00028493,7]
[345593717,1734373858537,-500.0,0.00028493,7]
[345593718,1734373858546,-809.72,0.00028493,7]
[345593719,1734373858556,-500.0,0.00028493,7]
[345593720,1734373858566,-569.99181688,0.00028493,7]
[345593721,1734373858575,-2441.19,0.00028493,7]
[345593722,1734373858584,-500.0,0.00028493,7]
[345593723,1734373858594,-1343.92,0.00028493,7]
[345593724,1734373858604,-500.0,0.00028493,7]
[345593725,1734373858613,-504.0577385,0.00028493,7]
[345593726,1734373858622,-500.0,0.00028493,7]
[345593727,1734373858631,-1000.0,0.00028493,2]
[345593728,1734373858641,-500.0,0.00028493,7]
[345593729,1734373858651,-500.0,0.00028493,7]
[345593730,1734373858661,-500.0,0.00028493,7]
[345593731,1734373858670,-669.81,0.00028493,7]
[345593732,1734373858680,-1088.46,0.00028493,7]
[345593733,1734373858689,-205.081789,0.00028493,7]
[345593734,1734373858698,-205.081789,0.00028493,7]
[345593735,1734373858710,-500.0,0.00028493,7]
[345593736,1734373858720,-579.63,0.00028493,7]
[345593737,1734373858730,-1538.31,0.00028493,7]
[345593738,1734373858740,-740.26,0.00028493,7]
[345593739,1734373858749,-151.0,0.00028493,7]
[345593740,1734373858871,-500.0,0.00028493,2]
[345593741,1734373858883,-1022.87,0.00028493,7]
[345593742,1734373858892,-500.0,0.00028493,7]
[345593743,1734373858902,-797.18,0.00028493,7]
[345593744,1734373858912,-151.0,0.00028493,7]
[345593745,1734373858921,-151.0,0.00028493,7]
[345593746,1734373858932,-566.50891236,0.00028493,7]
[345593747,1734373858941,-503.79900709,0.00028493,7]
[345593748,1734373858951,-500.0,0.00028493,7]
[345593749,1734373858964,-500.0,0.00028493,7]
[345593750,1734373858974,-500.0,0.00028493,7]
[345593751,1734373858983,-500.0,0.00028493,7]
[345593752,1734373858993,-500.0,0.00028493,7]
[345593753,1734373859003,-1048.19,0.00028493,7]
[345593754,1734373859014,-151.0,0.00028493,7]
[345593755,1734373859024,-184.564852,0.00028493,7]
[345593756,1734373859034,-500.0,0.00028493,7]
[345593757,1734373859044,-500.0,0.00028493,7]
[345593758,1734373859054,-16430.12,0.00028493,7]
[345593759,1734373859063,-500.0,0.00028493,7]
[345593760,1734373859074,-500.0,0.00028493,7]
[345593761,1734373859083,-1967.34,0.00028493,7]
[345593762,1734373859093,-2609.43,0.00028493,7]
[345593763,1734373859103,-500.0,0.00028493,7]
[345593764,1734373859113,-1078.98,0.00028493,7]
[345593765,1734373859122,-3929.87,0.00028493,5]
[345593766,1734373859132,-1884.79,0.00028493,7]
[345593767,1734373859141,-500.0,0.00028493,7]
[345593768,1734373859151,-500.0,0.00028493,7]
[345593769,1734373859162,-1246.41,0.00028493,7]
[345593770,1734373859173,-500.0,0.00028493,7]
[345593771,1734373859183,-9596.26,0.00028493,7]
[345593772,1734373859193,-516.43,0.00028493,7]
[345593773,1734373859202,-500.0,0.00028493,7]
[345593774,1734373859214,-500.0,0.00028493,7]
[345593775,1734373859224,-654.36,0.00028493,7]
[345593776,1734373859234,-326.257217,0.00028493,7]
[345593777,1734373859243,-500.0,0.00028493,7]
[345593778,1734373859252,-8176.81,0.00028493,7]
[345593779,1734373859262,-326.257217,0.00028493,7]
[345593780,1734373859272,-452.90901779,0.00028493,7]
[345593781,1734373859282,-500.0,0.00028493,7]
[345593782,1734373859291,-422.20269138,0.00028493,7]
[345593783,1734373859301,-500.0,0.00028493,2]
[345593784,1734373859310,-11026.87,0.00028493,7]
[345593785,1734373859320,-49791.75,0.00028493,7]
[345593786,1734373859330,-566.21,0.00028493,2]
[345593787,1734373859340,-500.0,0.00028493,7]
[345593788,1734373859350,-5132.11,0.00028493,7]
[345593789,1734373859360,-520.07,0.00028493,7]
[345593790,1734373859370,-500.0,0.00028493,7]
[345593791,1734373859380,-500.0,0.00028493,7]
[345593792,1734373859391,-760.292291,0.00028493,7]
[345593793,1734373859400,-500.0,0.00028493,7]
[345593794,1734373859410,-760.292291,0.00028493,7]
[345593795,1734373859419,-500.0,0.00028493,7]
[345593796,1734373859429,-1663.69,0.00028493,7]
[345593797,1734373859439,-2646.59,0.00028493,7]
[345593798,1734373859449,-500.0,0.00028493,7]
[345593799,1734373859461,-500.0,0.00028493,7]
[345593800,1734373859471,-151.0,0.00028493,7]
[345593801,1734373859480,-524.48,0.00028493,7]
[345593802,1734373859491,-941.13,0.00028493,7]
[345593803,1734373859500,-268.600536,0.00028493,7]
[345593804,1734373859516,-2823.16,0.00028493,7]
[345593805,1734373859526,-500.0,0.00028493,7]
[345593806,1734373859535,-500.0,0.00028493,7]
[345593807,1734373859545,-268.600536,0.00028493,7]
[345593808,1734373859555,-1610.16,0.00028493,7]
[345593809,1734373859564,-700.22,0.00028493,7]
[345593810,1734373859574,-500.0,0.00028493,7]
[345593811,1734373859584,-151.0,0.00028493,7]
[345593812,1734373859594,-151.0,0.00028493,7]
[345593813,1734373859604,-2623.08,0.00028493,7]
[345593814,1734373859614,-500.0,0.00028493,7]
[345593815,1734373859624,-151.0,0.00028493,7]
[345593816,1734373859634,-4957.14,0.00028493,7]
[345593817,1734373859644,-500.0,0.00028493,7]
[345593818,1734373859654,-151.0,0.00028493,7]
[345593819,1734373859664,-942.66,0.00028493,7]
[345593820,1734373859674,-800.65,0.00028493,7]
[345593821,1734373859683,-500.0,0.00028493,7]
[345593822,1734373859693,-3274.75,0.00028493,7]
[345593823,1734373859703,-2688.22,0.00028493,7]
[345593824,1734373859719,-790.52,0.00028493,7]
[345593825,1734373859729,-500.0,0.00028493,7]
[345593826,1734373859739,-500.0,0.00028493,7]
[345593827,1734373859748,-810.73,0.00028493,7]
[345593828,1734373859758,-2340.34,0.00028493,7]
[345593829,1734373859768,-553.7,0.00028493,7]
[345593830,1734373859778,-500.0,0.00028493,7]
[345593831,1734373859788,-340.442045,0.00028493,7]
[345593832,1734373859798,-500.0,0.00028493,7]
[345593833,1734373859809,-2321.11,0.00028493,7]
[345593834,1734373859819,-340.442045,0.00028493,7]
[345593835,1734373859830,-1581.38,0.00028493,7]
[345593836,1734373859840,-500.0,0.00028493,7]
[345593837,1734373859851,-1317.62,0.00028493,7]
[345593838,1734373859861,-500.0,0.00028493,7]
[345593839,1734373859871,-984.71,0.00028493,7]
[345593840,1734373859882,-505.61,0.00028493,7]
[345593841,1734373859891,-500.0,0.00028493,7]
[345593842,1734373859901,-1165.57,0.00028493,7]
[345593843,1734373859910,-520.87,0.00028493,7]
[345593844,1734373859920,-696.46,0.00028493,7]
[345593845,1734373859930,-850.46,0.00028493,7]
[345593846,1734373859940,-43415.42894965,0.000285,3]
[345593847,1734373859949,-29525.11676018,0.000285,3]
[345593848,1734373859964,-12104.13452041,0.000285,2]
[345593849,1734373859974,-615.1005361,0.000285,2]
[345593850,1734373859983,-151.0,0.000285,7]
[345593851,1734373859993,-151.0,0.000285,7]
[345593852,1734373860002,-151.0,0.000285,7]
[345593853,1734373860012,-151.0,0.000285,7]
[345593854,1734373860022,-151.0,0.000285,7]
[345593855,1734373860031,-151.0,0.000285,7]
[345593856,1734373860041,-151.0,0.000285,7]
[345593857,1734373860052,-151.0,0.000285,7]
[345593858,1734373860063,-151.0,0.000285,7]
[345593859,1734373860073,-151.0,0.000285,7]
[345593860,1734373860082,-151.0,0.000285,7]
[345593861,1734373860092,-1280.8908997,0.00028535,2]
[345593862,1734373860103,-151.0,0.0002856,7]
[345593863,1734373860112,-183.951485,0.0002856,7]
[345593864,1734373860122,-183.951485,0.0002856,7]
[345593865,1734373860131,-231.464839,0.0002856,7]
[345593866,1734373860141,-231.464839,0.0002856,7]
[345593867,1734373860151,-1700.0,0.0002856,30]
[345593868,1734373860160,-1700.0,0.0002856,30]
[345593869,1734373860171,-1700.0,0.0002856,30]
[345593870,1734373860181,-1700.0,0.0002856,30]
[345593871,1734373860192,-500.0,0.0002856,30]
[345593872,1734373860202,-1700.0,0.0002856,30]
[345593873,1734373860215,-1700.0,0.0002856,30]
[345593874,1734373860225,-683.11814125,0.0002856,30]
[345593875,1734373860234,-1700.0,0.0002856,30]
[345593876,1734373860244,-1700.0,0.0002856,30]
[345593877,1734373860254,-1700.0,0.0002856,30]
[345593878,1734373860263,-1700.0,0.0002856,30]
[345593879,1734373860273,-1700.0,0.0002856,30]
[345593880,1734373860283,-500.0,0.0002856,30]
[345593881,1734373860293,-1700.0,0.0002856,30]
[345593882,1734373860302,-500.0,0.0002856,30]
[345593883,1734373860312,-1700.0,0.0002856,30]
[345593884,1734373860321,-500.0,0.0002856,30]
[345593885,1734373860331,-1700.0,0.0002856,30]
[345593886,1734373860340,-500.0,0.0002856,30]
[345593887,1734373860350,-1700.0,0.0002856,30]
[345593888,1734373860359,-507.65780366,0.0002856,30]
[345593889,1734373860369,-1700.0,0.0002856,30]
[345593890,1734373860380,-1700.0,0.0002856,30]
[345593891,1734373860390,-1700.0,0.0002856,30]
[345593892,1734373860400,-1700.0,0.0002856,30]
[345593893,1734373860409,-1700.0,0.0002856,30]
[345593894,1734373860418,-1700.0,0.0002856,30]
[345593895,1734373860427,-1700.0,0.0002856,30]
[345593896,1734373860437,-1700.0,0.0002856,30]
[345593897,1734373860446,-1700.0,0.0002856,30]
[345593898,1734373860460,-1700.0,0.0002856,30]
[345593899,1734373860469,-1000.0,0.0002856,30]
[345593900,1734373860479,-1700.0,0.0002856,30]
[345593901,1734373860488,-500.0,0.0002856,30]
[345593902,1734373860498,-1000.0,0.0002856,30]
[345593903,1734373860508,-1700.0,0.0002856,30]
[345593904,1734373860520,-1000.0,0.0002856,30]
[345593905,1734373860529,-1700.0,0.0002856,30]
[345593906,1734373860538,-1000.0,0.0002856,30]
[345593907,1734373860549,-2900.0,0.0002856,30]
[345593908,1734373860558,-1000.0,0.0002856,30]
[345593909,1734373860568,-1000.0,0.0002856,30]
[345593910,1734373860578,-1000.0,0.0002856,30]
[345593911,1734373860591,-500.0,0.0002856,30]
[345593912,1734373860601,-1000.0,0.0002856,30]
[345593913,1734373860610,-999.93931507,0.0002856,30]
[345593914,1734373860620,-1000.0,0.0002856,30]
[345593915,1734373860629,-1000.0,0.0002856,30]
[345593916,1734373860639,-1000.0,0.0002856,30]
[345593917,1734373860648,-1000.0,0.0002856,30]
[345593918,1734373860658,-500.0,0.0002856,30]
[345593919,1734373860668,-1000.0,0.0002856,30]
[345593920,1734373860678,-500.0,0.0002856,30]
[345593921,1734373860688,-1000.0,0.0002856,30]
[345593922,1734373860698,-500.0,0.0002856,30]
[345593923,1734373860711,-1000.0,0.0002856,30]
[345593924,1734373860721,-500.0,0.0002856,30]
[345593925,1734373860731,-500.0,0.0002856,30]
[345593926,1734373860741,-1000.0,0.0002856,30]
[345593927,1734373860751,-500.0,0.0002856,30]
[345593928,1734373860760,-1000.0,0.0002856,30]
[345593929,1734373860770,-500.0,0.0002856,30]
[345593930,1734373860891,-1000.0,0.0002856,30]
[345593931,1734373860903,-500.0,0.0002856,30]
[345593932,1734373860913,-1000.0,0.0002856,30]
[345593933,1734373860923,-500.0,0.0002856,30]
[345593934,1734373860933,-1000.0,0.0002856,30]
[345593935,1734373860943,-1000.0,0.0002856,30]
[345593936,1734373860953,-500.0,0.0002856,30]
[345593937,1734373860965,-1000.0,0.0002856,30]
[345593938,1734373860975,-500.0,0.0002856,30]
[345593939,1734373860984,-1000.0,0.0002856,30]
[345593940,1734373860994,-500.0,0.0002856,30]
[345593941,1734373861004,-1000.0,0.0002856,30]
[345593942,1734373861014,-1000.0,0.0002856,30]
[345593943,1734373861024,-500.0,0.0002856,30]
[345593944,1734373861033,-1000.0,0.0002856,30]
[345593945,1734373861043,-500.0,0.0002856,30]
[345593946,1734373861053,-1000.0,0.0002856,30]
[345593947,1734373861063,-500.0,0.0002856,30]
[345593948,1734373861073,-1000.0,0.0002856,30]
[345593949,1734373861082,-500.0,0.0002856,30]
[345593950,1734373861092,-1000.0,0.0002856,30]
[345593951,1734373861102,-500.0,0.0002856,30]
[345593952,1734373861112,-500.0,0.0002856,30]
[345593953,1734373861122,-500.0,0.0002856,30]
[345593954,1734373861132,-500.0,0.0002856,30]
[345593955,1734373861142,-500.0,0.0002856,30]
[345593956,1734373861152,-500.0,0.0002856,30]
[345593957,1734373861166,-500.0,0.0002856,30]
[345593958,1734373861176,-500.0,0.0002856,30]
[345593959,1734373861186,-500.0,0.0002856,30]
[345593960,1734373861196,-500.0,0.0002856,30]
[345593961,1734373861209,-500.0,0.0002856,30]
[345593962,1734373861220,-500.0,0.0002856,30]
[345593963,1734373861231,-882.14940024,0.0002856,30]
[345593964,1734373861241,-500.0,0.0002856,30]
[345593965,1734373861251,-500.0,0.0002856,30]
[345593966,1734373861261,-500.0,0.0002856,30]
[345593967,1734373861271,-500.0,0.0002856,30]
[345593968,1734373861280,-500.0,0.0002856,30]
[345593969,1734373861291,-500.0,0.0002856,30]
[345593970,1734373861300,-500.0,0.0002856,30]
[345593971,1734373861309,-500.0,0.0002856,30]
[345593972,1734373861319,-500.0,0.0002856,30]
[345593973,1734373861330,-500.0,0.0002856,30]
[345593974,1734373861344,-500.0,0.0002856,30]
[345593975,1734373861354,-500.0,0.0002856,30]
[345593976,1734373861364,-500.0,0.0002856,30]
[345593977,1734373861375,-500.0,0.0002856,30]
[345593978,1734373861384,-500.0,0.0002856,30]
[345593979,1734373861394,-500.0,0.0002856,30]
[345593980,1734373861403,-500.0,0.0002856,30]
[345593981,1734373861412,-500.0,0.0002856,30]
[345593982,1734373861422,-500.0,0.0002856,30]
[345593983,1734373861431,-500.0,0.0002856,30]
[345593984,1734373861441,-500.0,0.0002856,30]
[345593985,1734373861450,-500.0,0.0002856,30]
[345593986,1734373861464,-500.0,0.0002856,30]
[345593987,1734373861473,-500.0,0.0002856,30]
[345593988,1734373861482,-500.0,0.0002856,30]
[345593989,1734373861492,-500.0,0.0002856,30]
[345593990,1734373861501,-500.0,0.0002856,30]
[345593991,1734373861512,-500.0,0.0002856,30]
[345593992,1734373861524,-882.14940024,0.0002856,30]
[345593993,1734373861534,-205.081789,0.0002856,7]
[345593994,1734373861543,-205.081789,0.0002856,7]
[345593995,1734373861553,-151.0,0.0002856,7]
[345593996,1734373861563,-151.0,0.0002856,7]
[345593997,1734373861573,-326.257217,0.0002856,7]
[345593998,1734373861583,-326.257217,0.0002856,7]
[345593999,1734373861592,-500.0,0.0002856,30]
[345594000,1734373861601,-500.0,0.0002856,30]
[345594001,1734373861611,-500.0,0.0002856,30]
[345594002,1734373861621,-500.0,0.0002856,30]
[345594003,1734373861631,-500.0,0.0002856,30]
[345594004,1734373861641,-500.0,0.0002856,30]
[345594005,1734373861650,-835.70119952,0.0002856,30]
[345594006,1734373861660,-760.292291,0.0002856,7]
[345594007,1734373861671,-760.292291,0.0002856,7]
[345594008,1734373861680,-151.0,0.0002856,7]
[345594009,1734373861690,-268.600536,0.0002856,7]
[345594010,1734373861701,-268.600536,0.0002856,7]
[345594011,1734373861714,-151.0,0.0002856,7]
[345594012,1734373861723,-270.285448,0.0002856,7]
[345594013,1734373861733,-340.442045,0.0002856,7]
[345594014,1734373861742,-340.442045,0.0002856,7]
[345594015,1734373861752,-600.0,0.00028602,2]
[345594016,1734373861761,-180.24,0.00028649,3]
[345594017,1734373861771,-162.76500062,0.00028658,2]
[345594018,1734373861781,-626.7427338,0.00028692,2]
[345594019,1734373861790,-730.43,0.000287,31]
[345594020,1734373861800,-730.43,0.000287,31]
[345594021,1734373861810,-730.43,0.000287,31]
[345594022,1734373861821,-730.43,0.000287,31]
[345594023,1734373861831,-730.43,0.000287,31]
[345594024,1734373861842,-730.43,0.000287,31]
[345594025,1734373861852,-730.43,0.000287,31]
[345594026,1734373861862,-730.43,0.000287,31]
[345594027,1734373861872,-730.43,0.000287,31]
[345594028,1734373861881,-730.43,0.000287,31]
[345594029,1734373861890,-730.43,0.000287,31]
[345594030,1734373861901,-730.43,0.000287,31]
[345594031,1734373861910,-730.43,0.000287,31]
[345594032,1734373861920,-730.43,0.000287,31]
[345594033,1734373861929,-730.43,0.000287,31]
[345594034,1734373861939,-730.43,0.000287,31]
[345594035,1734373861949,-730.43,0.000287,31]
[345594036,1734373861961,-730.43,0.000287,31]
[345594037,1734373861970,-730.43,0.000287,31]
[345594038,1734373861979,-730.43,0.000287,31]
[345594039,1734373861989,-730.43,0.000287,31]
[345594040,1734373861998,-730.43,0.000287,31]
[345594041,1734373862007,-730.43,0.000287,31]
[345594042,1734373862017,-730.43,0.000287,31]
[345594043,1734373862027,-151.0,0.000287,7]
[345594044,1734373862037,-151.0,0.000287,7]
[345594045,1734373862046,-154.0,0.00028752,3]
[345594046,1734373862055,-154.0,0.00028752,3]
[345594047,1734373862065,-154.0,0.00028752,3]
[345594048,1734373862074,-154.0,0.00028752,3]
[345594049,1734373862084,-154.0,0.00028752,3]
[345594050,1734373862093,-154.0,0.00028752,3]
[345594051,1734373862103,-154.0,0.00028752,3]
[345594052,1734373862113,-154.0,0.00028752,3]
[345594053,1734373862122,-154.0,0.00028752,3]
[345594054,1734373862131,-154.0,0.00028752,3]
[345594055,1734373862141,-154.0,0.00028752,3]
[345594056,1734373862151,-154.0,0.00028752,3]
[345594057,1734373862160,-154.0,0.00028752,3]
[345594058,1734373862169,-154.0,0.00028752,3]
[345594059,1734373862179,-154.0,0.00028752,3]
[345594060,1734373862189,-154.0,0.00028752,3]
[345594061,1734373862198,-154.0,0.00028752,3]
[345594062,1734373862211,-154.0,0.00028752,3]
[345594063,1734373862220,-294.0,0.00028752,3]
[345594064,1734373862230,-500.0,0.00028767,7]
[345594065,1734373862240,-249.363346,0.00028767,7]
[345594066,1734373862249,-151.0,0.00028767,7]
[345594067,1734373862259,-151.0,0.00028767,7]
[345594068,1734373862268,-500.0,0.00028767,7]
[345594069,1734373862278,-500.0,0.00028767,7]
[345594070,1734373862288,-500.0,0.00028767,7]
[345594071,1734373862297,-500.0,0.00028767,7]
[345594072,1734373862307,-500.0,0.00028767,7]
[345594073,1734373862316,-458.8455698,0.00028767,7]
[345594074,1734373862325,-500.0,0.00028767,7]
[345594075,1734373862335,-781.2,0.00028767,7]
[345594076,1734373862344,-500.0,0.00028767,7]
[345594077,1734373862354,-652.55,0.00028767,7]
[345594078,1734373862364,-593.73847109,0.00028767,7]
[345594079,1734373862374,-500.0,0.00028767,7]
[345594080,1734373862384,-500.0,0.00028767,7]
[345594081,1734373862393,-151.0,0.00028767,7]
[345594082,1734373862402,-500.0,0.00028767,7]
[345594083,1734373862412,-500.0,0.00028767,7]
[345594084,1734373862421,-151.485599,0.00028767,7]
[345594085,1734373862430,-528.469171,0.00028767,7]
[345594086,1734373862440,-500.0,0.00028767,7]
[345594087,1734373862449,-1942.51,0.00028767,7]
[345594088,1734373862461,-549.01,0.00028767,7]
[345594089,1734373862470,-738.47,0.00028767,7]
[345594090,1734373862481,-500.0,0.00028767,7]
[345594091,1734373862491,-500.0,0.00028767,7]
[345594092,1734373862500,-683.4,0.00028767,7]
[345594093,1734373862511,-500.0,0.00028767,7]
[345594094,1734373862522,-479.26955634,0.00028767,7]
[345594095,1734373862531,-965.75,0.00028767,7]
[345594096,1734373862541,-2608.94,0.00028767,7]
[345594097,1734373862552,-615.23,0.00028767,7]
[345594098,1734373862562,-864.53,0.00028767,7]
[345594099,1734373862572,-500.0,0.00028767,7]
[345594100,1734373862583,-500.0,0.00028767,7]
[345594101,1734373862592,-938.96,0.00028767,7]
[345594102,1734373862602,-168.02,0.00028767,7]
[345594103,1734373862612,-563.36,0.00028767,7]
[345594104,1734373862621,-500.0,0.00028767,7]
[345594105,1734373862631,-1710.74,0.00028767,7]
[345594106,1734373862743,-855.63,0.00028767,7]
[345594107,1734373862752,-500.0,0.00028767,7]
[345594108,1734373862762,-500.0,0.00028767,7]
[345594109,1734373862773,-1166.87,0.00028767,7]
[345594110,1734373862783,-2025.4,0.00028767,2]
[345594111,1734373862793,-500.0,0.00028767,7]
[345594112,1734373862802,-835.88,0.00028767,7]
[345594113,1734373862812,-1056.72,0.00028767,7]
[345594114,1734373862822,-809.72,0.00028767,7]
[345594115,1734373862832,-500.0,0.00028767,7]
[345594116,1734373862842,-500.0,0.00028767,7]
[345594117,1734373862852,-2441.19,0.00028767,7]
[345594118,1734373862861,-500.0,0.00028767,7]
[345594119,1734373862870,-1343.92,0.00028767,7]
[345594120,1734373862881,-500.0,0.00028767,7]
[345594121,1734373862890,-500.0,0.00028767,7]
[345594122,1734373862900,-1000.0,0.00028767,2]
[345594123,1734373862909,-500.0,0.00028767,7]
[345594124,1734373862918,-193.69707847,0.00028767,7]
[345594125,1734373862928,-500.0,0.00028767,7]
[345594126,1734373862937,-669.81,0.00028767,7]
[345594127,1734373862947,-1088.46,0.00028767,7]
[345594128,1734373862957,-500.0,0.00028767,7]
[345594129,1734373862969,-579.63,0.00028767,7]
[345594130,1734373862979,-151.0,0.00028767,7]
[345594131,1734373862988,-1538.31,0.00028767,7]
[345594132,1734373862998,-151.0,0.00028767,7]
[345594133,1734373863007,-740.26,0.00028767,7]
[345594134,1734373863018,-500.0,0.00028767,2]
[345594135,1734373863028,-1022.87,0.00028767,7]
[345594136,1734373863037,-500.0,0.00028767,7]
[345594137,1734373863047,-797.18,0.00028767,7]
[345594138,1734373863057,-151.0,0.00028767,7]
[345594139,1734373863066,-151.0,0.00028767,7]
[345594140,1734373863076,-500.0,0.00028767,9]
[345594141,1734373863086,-500.0,0.00028767,7]
[345594142,1734373863096,-500.0,0.00028767,7]
[345594143,1734373863106,-500.0,0.00028767,7]
[345594144,1734373863115,-500.0,0.00028767,7]
[345594145,1734373863125,-500.0,0.00028767,7]
[345594146,1734373863135,-1048.19,0.00028767,7]
[345594147,1734373863145,-500.0,0.00028767,7]
[345594148,1734373863154,-500.0,0.00028767,7]
[345594149,1734373863164,-16430.12,0.00028767,7]
[345594150,1734373863174,-500.0,0.00028767,7]
[345594151,1734373863184,-500.0,0.00028767,7]
[345594152,1734373863194,-177.469224,0.00028767,7]
[345594153,1734373863204,-1967.34,0.00028767,7]
[345594154,1734373863217,-2609.43,0.00028767,7]
[345594155,1734373863226,-500.0,0.00028767,7]
[345594156,1734373863236,-1078.98,0.00028767,7]
[345594157,1734373863245,-3929.87,0.00028767,5]
[345594158,1734373863254,-1884.79,0.00028767,7]
[345594159,1734373863264,-500.0,0.00028767,7]
[345594160,1734373863274,-500.0,0.00028767,7]
[345594161,1734373863283,-1246.41,0.00028767,7]
[345594162,1734373863293,-500.0,0.00028767,7]
[345594163,1734373863303,-9596.26,0.00028767,7]
[345594164,1734373863312,-516.43,0.00028767,7]
[345594165,1734373863322,-500.0,0.00028767,7]
[345594166,1734373863332,-500.0,0.00028767,7]
[345594167,1734373863342,-654.36,0.00028767,7]
[345594168,1734373863352,-500.0,0.00028767,7]
[345594169,1734373863362,-8176.81,0.00028767,7]